[Event "December 5 Late 2023"]
[Site "https://www.chess.com"]
[Date "2023.12.05"]
[Round "11"]
[White "Vlassov, Nikolai"]
[Black "Teumer, Joerg, Dr."]
[Result "0-1"]
[Board "69"]
[TimeControl "180+1"]
[WhiteFideId "4103360"]
[BlackFideId "4643526"]
[WhiteElo "2617"]
[BlackElo "2162"]
[WhiteTeam "FID"]
[BlackTeam "GER"]
[WhiteClock "0:00:00"]
[BlackClock "0:00:10"]

1. e4 {[%clk 0:03:00]}  d5 {[%clk 0:02:57]} 2. exd5 {[%clk 0:03:00]}  Nf6 {[%clk 0:02:57]} 3. Bb5+ {[%clk 0:02:59]}  Bd7 {[%clk 0:02:56]} 4. Bc4 {[%clk 0:02:59]}  Bg4 {[%clk 0:02:52]} 5. f3 {[%clk 0:02:59]}  Bf5 {[%clk 0:02:50]} 6. g4 {[%clk 0:02:58]}  Bc8 {[%clk 0:02:50]} 7. Nc3 {[%clk 0:02:58]}  c6 {[%clk 0:02:45]} 8. dxc6 {[%clk 0:02:57]}  Nxc6 {[%clk 0:02:45]} 9. Nge2 {[%clk 0:02:51]}  Ne5 {[%clk 0:02:39]} 10. Bb5+ {[%clk 0:02:51]}  Bd7 {[%clk 0:02:39]} 11. Bxd7+ {[%clk 0:02:48]}  Qxd7 {[%clk 0:02:37]} 12. O-O {[%clk 0:02:47]}  e6 {[%clk 0:02:32]} 13. d4 {[%clk 0:02:44]}  Nc6 {[%clk 0:02:23]} 14. Be3 {[%clk 0:02:42]}  O-O-O {[%clk 0:02:14]} 15. Qe1 {[%clk 0:02:30]}  h5 {[%clk 0:02:01]} 16. g5 {[%clk 0:02:30]}  Nd5 {[%clk 0:01:59]} 17. Bf2 {[%clk 0:02:21]}  Bb4 {[%clk 0:01:42]} 18. a3 {[%clk 0:02:19]}  Ba5 {[%clk 0:01:42]} 19. b4 {[%clk 0:02:16]}  Bb6 {[%clk 0:01:43]} 20. Ne4 {[%clk 0:02:07]}  f5 {[%clk 0:01:29]} 21. Nc5 {[%clk 0:01:57]}  Bxc5 {[%clk 0:01:25]} 22. dxc5 {[%clk 0:01:55]}  f4 {[%clk 0:01:13]} 23. Rd1 {[%clk 0:01:42]}  Qf7 {[%clk 0:01:07]} 24. Nd4 {[%clk 0:01:28]}  Nxd4 {[%clk 0:00:47]} 25. Bxd4 {[%clk 0:01:25]}  Qf5 {[%clk 0:00:45]} 26. Kh1 {[%clk 0:00:32]}  Rhe8 {[%clk 0:00:36]} 27. Rg1 {[%clk 0:00:26]}  e5 {[%clk 0:00:34]} 28. Bf2 {[%clk 0:00:20]}  e4 {[%clk 0:00:31]} 29. fxe4 {[%clk 0:00:16]}  Rxe4 {[%clk 0:00:31]} 30. Qf1 {[%clk 0:00:16]}  f3 {[%clk 0:00:26]} 31. c4 {[%clk 0:00:15]}  Nf4 {[%clk 0:00:23]} 32. Rxd8+ {[%clk 0:00:14]}  Kxd8 {[%clk 0:00:24]} 33. c6 {[%clk 0:00:14]}  bxc6 {[%clk 0:00:23]} 34. Bxa7 {[%clk 0:00:14]}  Ne2 {[%clk 0:00:22]} 35. Qd1+ {[%clk 0:00:12]}  Kc8 {[%clk 0:00:21]} 36. Rf1 {[%clk 0:00:12]}  f2 {[%clk 0:00:20]} 37. Qd3 {[%clk 0:00:11]}  Qf4 {[%clk 0:00:17]} 38. c5 {[%clk 0:00:10]}  Nd4 {[%clk 0:00:15]} 39. Qa6+ {[%clk 0:00:09]}  Kd7 {[%clk 0:00:15]} 40. Qb7+ {[%clk 0:00:09]}  Ke6 {[%clk 0:00:16]} 41. Qc8+ {[%clk 0:00:09]}  Kd5 {[%clk 0:00:16]} 42. Qh3 {[%clk 0:00:08]}  Re3 {[%clk 0:00:14]} 43. Qg2+ {[%clk 0:00:08]}  Kc4 {[%clk 0:00:14]} 44. Rxf2 {[%clk 0:00:08]}  Re1+ {[%clk 0:00:14]} 45. Qg1 {[%clk 0:00:07]}  Rxg1+ {[%clk 0:00:14]} 46. Kxg1 {[%clk 0:00:08]}  Qe3 {[%clk 0:00:15]} 47. Kg2 {[%clk 0:00:08]}  Nc2 {[%clk 0:00:14]} 48. b5 {[%clk 0:00:06]}  Kxb5 {[%clk 0:00:14]} 49. Bb6 {[%clk 0:00:06]}  Nd4 {[%clk 0:00:14]} 50. a4+ {[%clk 0:00:05]}  Ka6 {[%clk 0:00:14]} 51. Bc7 {[%clk 0:00:04]}  Qe4+ {[%clk 0:00:13]} 52. Kg1 {[%clk 0:00:04]}  Nf5 {[%clk 0:00:13]} 53. Bd6 {[%clk 0:00:03]}  g6 {[%clk 0:00:11]} 54. Bf4 {[%clk 0:00:02]}  Qd4 {[%clk 0:00:11]} 55. Kg2 {[%clk 0:00:02]}  Ka5 {[%clk 0:00:10]} 56. Bd2+ {[%clk 0:00:02]}  Ka6 {[%clk 0:00:10]} 57. Bf4 {[%clk 0:00:02]}  Kb7 {[%clk 0:00:10]} 58. Bd6 {[%clk 0:00:02]}  h4 {[%clk 0:00:10]} 59. Bf4 {[%clk 0:00:00]}  Qe4+ {[%clk 0:00:10]} 0-1

[Event "December 5 Late 2023"]
[Site "https://www.chess.com"]
[Date "2023.12.05"]
[Round "11"]
[White "Leenhouts, Koen"]
[Black "Bonin, Jay"]
[Result "1-0"]
[Board "73"]
[TimeControl "180+1"]
[WhiteFideId "1008439"]
[BlackFideId "2000644"]
[WhiteElo "2501"]
[BlackElo "2394"]
[WhiteTeam "NED"]
[BlackTeam "USA"]
[WhiteClock "0:00:51"]
[BlackClock "0:00:23"]

1. e4 {[%clk 0:02:59]}  c5 {[%clk 0:02:58]} 2. Nf3 {[%clk 0:02:59]}  Nc6 {[%clk 0:02:58]} 3. Bb5 {[%clk 0:02:58]}  g6 {[%clk 0:02:57]} 4. O-O {[%clk 0:02:54]}  Bg7 {[%clk 0:02:56]} 5. Re1 {[%clk 0:02:54]}  Nf6 {[%clk 0:02:56]} 6. c3 {[%clk 0:02:49]}  O-O {[%clk 0:02:54]} 7. e5 {[%clk 0:02:45]}  Nd5 {[%clk 0:02:53]} 8. d4 {[%clk 0:02:44]}  cxd4 {[%clk 0:02:52]} 9. cxd4 {[%clk 0:02:45]}  d6 {[%clk 0:02:50]} 10. Bxc6 {[%clk 0:02:42]}  bxc6 {[%clk 0:02:48]} 11. h3 {[%clk 0:02:38]}  a5 {[%clk 0:02:41]} 12. Nc3 {[%clk 0:02:27]}  Ba6 {[%clk 0:02:36]} 13. Nxd5 {[%clk 0:02:22]}  cxd5 {[%clk 0:02:35]} 14. Bf4 {[%clk 0:02:22]}  dxe5 {[%clk 0:02:29]} 15. Nxe5 {[%clk 0:02:17]}  e6 {[%clk 0:02:25]} 16. Rc1 {[%clk 0:02:09]}  a4 {[%clk 0:02:11]} 17. Qxa4 {[%clk 0:01:58]}  Bc4 {[%clk 0:02:06]} 18. Qb4 {[%clk 0:01:56]}  Rxa2 {[%clk 0:02:01]} 19. b3 {[%clk 0:01:48]}  Rb2 {[%clk 0:01:48]} 20. Re3 {[%clk 0:01:36]}  Qa8 {[%clk 0:01:31]} 21. Nxc4 {[%clk 0:01:25]}  dxc4 {[%clk 0:01:29]} 22. Qxc4 {[%clk 0:01:26]}  Rd8 {[%clk 0:01:21]} 23. Be5 {[%clk 0:01:24]}  Qa2 {[%clk 0:01:15]} 24. Rf1 {[%clk 0:01:16]}  Bxe5 {[%clk 0:01:07]} 25. dxe5 {[%clk 0:01:15]}  Rdd2 {[%clk 0:01:00]} 26. Rf3 {[%clk 0:01:11]}  Rb1 {[%clk 0:00:55]} 27. Rxb1 {[%clk 0:00:57]}  Qxb1+ {[%clk 0:00:54]} 28. Kh2 {[%clk 0:00:57]}  Rd1 {[%clk 0:00:23]} 29. Qc7 {[%clk 0:00:51]} 1-0

[Event "December 5 Late 2023"]
[Site "https://www.chess.com"]
[Date "2023.12.05"]
[Round "11"]
[White "Nery Junior, Jose Antonio"]
[Black "Dobre, Claudiu-Cristian"]
[Result "1-0"]
[Board "75"]
[TimeControl "180+1"]
[WhiteFideId "2104822"]
[BlackFideId "1211854"]
[WhiteElo "2359"]
[BlackElo "2490"]
[WhiteTeam "BRA"]
[BlackTeam "ROU"]
[WhiteClock "0:00:10"]
[BlackClock "0:00:02"]

1. e4 {[%clk 0:02:21]}  Nc6 {[%clk 0:02:59]} 2. Nf3 {[%clk 0:02:19]}  d6 {[%clk 0:02:59]} 3. Bc4 {[%clk 0:02:14]}  Nf6 {[%clk 0:02:57]} 4. Nc3 {[%clk 0:02:11]}  Bg4 {[%clk 0:02:57]} 5. e5 {[%clk 0:02:06]}  Nxe5 {[%clk 0:02:02]} 6. Nxe5 {[%clk 0:02:03]}  dxe5 {[%clk 0:02:02]} 7. f3 {[%clk 0:01:57]}  Bf5 {[%clk 0:01:58]} 8. d3 {[%clk 0:01:58]}  c6 {[%clk 0:01:56]} 9. Be3 {[%clk 0:01:56]}  e6 {[%clk 0:01:55]} 10. O-O {[%clk 0:01:53]}  Nd5 {[%clk 0:01:55]} 11. Bf2 {[%clk 0:01:48]}  Nxc3 {[%clk 0:01:51]} 12. bxc3 {[%clk 0:01:48]}  Qa5 {[%clk 0:01:51]} 13. Qe1 {[%clk 0:01:41]}  Bc5 {[%clk 0:01:42]} 14. Kh1 {[%clk 0:01:35]}  Bxf2 {[%clk 0:01:41]} 15. Rxf2 {[%clk 0:01:36]}  h5 {[%clk 0:00:38]} 16. Re2 {[%clk 0:01:33]}  O-O-O {[%clk 0:00:39]} 17. Rxe5 {[%clk 0:01:26]}  Qc7 {[%clk 0:00:38]} 18. Rb1 {[%clk 0:01:22]}  h4 {[%clk 0:00:38]} 19. h3 {[%clk 0:01:14]}  Rh6 {[%clk 0:00:37]} 20. d4 {[%clk 0:01:01]}  Bxc2 {[%clk 0:00:35]} 21. Rb2 {[%clk 0:00:59]}  Bf5 {[%clk 0:00:34]} 22. a4 {[%clk 0:00:57]}  Rg6 {[%clk 0:00:20]} 23. Qxh4 {[%clk 0:00:53]}  f6 {[%clk 0:00:16]} 24. Bxe6+ {[%clk 0:00:49]}  Bxe6 {[%clk 0:00:15]} 25. Rxe6 {[%clk 0:00:50]}  Qa5 {[%clk 0:00:13]} 26. Qe1 {[%clk 0:00:43]}  Qxa4 {[%clk 0:00:12]} 27. Re7 {[%clk 0:00:38]}  Rd7 {[%clk 0:00:06]} 28. Qe6 {[%clk 0:00:33]}  c5 {[%clk 0:00:03]} 29. Re8+ {[%clk 0:00:18]}  Kc7 {[%clk 0:00:03]} 30. Qe4 {[%clk 0:00:16]}  Rg5 {[%clk 0:00:02]} 31. Rxb7+ {[%clk 0:00:14]}  Kd6 {[%clk 0:00:02]} 32. Qe6# {[%clk 0:00:10]} 1-0

[Event "December 5 Late 2023"]
[Site "https://www.chess.com"]
[Date "2023.12.05"]
[Round "11"]
[White "Gerbelli Neto, Eduardo"]
[Black "Ventura Bolet, Maxim"]
[Result "0-1"]
[Board "76"]
[TimeControl "180+1"]
[WhiteFideId "2103281"]
[BlackFideId "22238824"]
[WhiteElo "2345"]
[BlackElo "2469"]
[WhiteTeam "BRA"]
[BlackTeam "ESP"]
[WhiteClock "0:00:02"]
[BlackClock "0:00:49"]

1. e4 {[%clk 0:03:00]}  Nf6 {[%clk 0:02:58]} 2. Nc3 {[%clk 0:02:59]}  d5 {[%clk 0:02:58]} 3. e5 {[%clk 0:03:00]}  d4 {[%clk 0:02:57]} 4. exf6 {[%clk 0:02:56]}  dxc3 {[%clk 0:02:57]} 5. fxg7 {[%clk 0:02:57]}  cxd2+ {[%clk 0:02:51]} 6. Bxd2 {[%clk 0:02:55]}  Bxg7 {[%clk 0:02:51]} 7. Qf3 {[%clk 0:02:54]}  Bxb2 {[%clk 0:02:41]} 8. Rd1 {[%clk 0:02:51]}  Qd6 {[%clk 0:02:36]} 9. Bc4 {[%clk 0:02:29]}  Qg6 {[%clk 0:02:17]} 10. Ne2 {[%clk 0:02:24]}  Nc6 {[%clk 0:02:14]} 11. c3 {[%clk 0:01:41]}  Bg4 {[%clk 0:02:04]} 12. Bxf7+ {[%clk 0:01:40]}  Qxf7 {[%clk 0:02:01]} 13. Qxg4 {[%clk 0:01:40]}  Rg8 {[%clk 0:01:56]} 14. Qa4 {[%clk 0:01:23]}  O-O-O {[%clk 0:01:53]} 15. Rb1 {[%clk 0:01:08]}  Rxg2 {[%clk 0:01:44]} 16. Rf1 {[%clk 0:01:08]}  Ne5 {[%clk 0:01:27]} 17. Nd4 {[%clk 0:00:30]}  Qh5 {[%clk 0:00:51]} 18. Be3 {[%clk 0:00:02]}  Bxc3+ {[%clk 0:00:49]} 0-1

[Event "December 5 Late 2023"]
[Site "https://www.chess.com"]
[Date "2023.12.05"]
[Round "11"]
[White "Bijaoui, Manuel"]
[Black "youngdinousaur"]
[Result "1-0"]
[Board "78"]
[TimeControl "180+1"]
[WhiteFideId "626783"]
[WhiteElo "2536"]
[BlackElo "2328"]
[WhiteTeam "FRA"]
[WhiteClock "0:01:48"]
[BlackClock "0:00:33"]

1. e4 {[%clk 0:02:59]}  c5 {[%clk 0:02:59]} 2. Nf3 {[%clk 0:02:59]}  e6 {[%clk 0:02:59]} 3. d4 {[%clk 0:03:00]}  cxd4 {[%clk 0:03:00]} 4. Nxd4 {[%clk 0:03:00]}  Nf6 {[%clk 0:03:01]} 5. Nc3 {[%clk 0:02:58]}  Nc6 {[%clk 0:03:02]} 6. g3 {[%clk 0:02:55]}  d5 {[%clk 0:02:56]} 7. exd5 {[%clk 0:02:55]}  Nxd5 {[%clk 0:02:56]} 8. Bg2 {[%clk 0:02:56]}  Bb4 {[%clk 0:02:48]} 9. O-O {[%clk 0:02:54]}  O-O {[%clk 0:02:44]} 10. Nxd5 {[%clk 0:02:54]}  exd5 {[%clk 0:02:45]} 11. Bf4 {[%clk 0:02:52]}  Bc5 {[%clk 0:02:35]} 12. Nb3 {[%clk 0:02:51]}  Bb6 {[%clk 0:02:29]} 13. Qxd5 {[%clk 0:02:51]}  Qxd5 {[%clk 0:02:26]} 14. Bxd5 {[%clk 0:02:52]}  Rd8 {[%clk 0:02:27]} 15. Bg2 {[%clk 0:02:42]}  Bf5 {[%clk 0:02:25]} 16. c3 {[%clk 0:02:40]}  Rd7 {[%clk 0:02:17]} 17. Rad1 {[%clk 0:02:39]}  Rad8 {[%clk 0:02:18]} 18. Rxd7 {[%clk 0:02:38]}  Rxd7 {[%clk 0:02:19]} 19. Re1 {[%clk 0:02:37]}  Kf8 {[%clk 0:02:14]} 20. h3 {[%clk 0:02:36]}  f6 {[%clk 0:02:08]} 21. g4 {[%clk 0:02:35]}  Bc2 {[%clk 0:02:03]} 22. Be3 {[%clk 0:02:34]}  Bxe3 {[%clk 0:02:02]} 23. Rxe3 {[%clk 0:02:35]}  Bxb3 {[%clk 0:01:59]} 24. axb3 {[%clk 0:02:36]}  Rd2 {[%clk 0:01:59]} 25. b4 {[%clk 0:02:33]}  Rxb2 {[%clk 0:01:59]} 26. Re6 {[%clk 0:02:26]}  Nd8 {[%clk 0:01:31]} 27. Rd6 {[%clk 0:02:24]}  Ke7 {[%clk 0:01:31]} 28. Rd3 {[%clk 0:02:25]}  Rc2 {[%clk 0:01:28]} 29. Be4 {[%clk 0:02:21]}  Rc1+ {[%clk 0:01:28]} 30. Kg2 {[%clk 0:02:21]}  g6 {[%clk 0:01:28]} 31. Bd5 {[%clk 0:02:18]}  Re1 {[%clk 0:01:22]} 32. b5 {[%clk 0:02:17]}  b6 {[%clk 0:01:17]} 33. c4 {[%clk 0:02:16]}  Ne6 {[%clk 0:01:17]} 34. Ra3 {[%clk 0:02:15]}  Nf4+ {[%clk 0:01:07]} 35. Kf3 {[%clk 0:02:12]}  Nxd5 {[%clk 0:01:07]} 36. Rxa7+ {[%clk 0:02:10]}  Kd6 {[%clk 0:01:07]} 37. cxd5 {[%clk 0:02:10]}  Kxd5 {[%clk 0:01:04]} 38. Rxh7 {[%clk 0:02:10]}  Kc5 {[%clk 0:01:02]} 39. Rh6 {[%clk 0:02:06]}  Kxb5 {[%clk 0:00:54]} 40. Rxg6 {[%clk 0:02:06]}  Re6 {[%clk 0:00:54]} 41. h4 {[%clk 0:01:55]}  Kc4 {[%clk 0:00:54]} 42. h5 {[%clk 0:01:56]}  b5 {[%clk 0:00:52]} 43. h6 {[%clk 0:01:56]}  Re8 {[%clk 0:00:49]} 44. Rxf6 {[%clk 0:01:55]}  b4 {[%clk 0:00:49]} 45. g5 {[%clk 0:01:54]}  b3 {[%clk 0:00:49]} 46. Rb6 {[%clk 0:01:54]}  Re5 {[%clk 0:00:37]} 47. Kf4 {[%clk 0:01:48]}  Rb5 {[%clk 0:00:33]} 48. Rxb5 {[%clk 0:01:48]}  Kxb5 {[%clk 0:00:34]} 49. h7 {[%clk 0:01:48]}  b2 {[%clk 0:00:35]} 50. h8=Q {[%clk 0:01:48]}  b1=Q {[%clk 0:00:33]} 51. Qb8+ {[%clk 0:01:48]} 1-0

[Event "December 5 Late 2023"]
[Site "https://www.chess.com"]
[Date "2023.12.05"]
[Round "11"]
[White "Skibbe, Willi"]
[Black "NovakRatko"]
[Result "1/2-1/2"]
[Board "79"]
[TimeControl "180+1"]
[WhiteFideId "4682190"]
[WhiteElo "2317"]
[BlackElo "2457"]
[WhiteTeam "GER"]
[WhiteClock "0:01:26"]
[BlackClock "0:02:05"]

1. e4 {[%clk 0:02:57]}  d5 {[%clk 0:02:59]} 2. exd5 {[%clk 0:02:55]}  c6 {[%clk 0:03:00]} 3. dxc6 {[%clk 0:02:53]}  Nxc6 {[%clk 0:03:00]} 4. Nf3 {[%clk 0:02:52]}  e5 {[%clk 0:03:01]} 5. Be2 {[%clk 0:02:52]}  e4 {[%clk 0:03:01]} 6. Ng1 {[%clk 0:02:53]}  f5 {[%clk 0:03:01]} 7. d3 {[%clk 0:02:52]}  Qb6 {[%clk 0:03:00]} 8. dxe4 {[%clk 0:02:49]}  fxe4 {[%clk 0:03:00]} 9. Nc3 {[%clk 0:02:49]}  Nf6 {[%clk 0:02:59]} 10. Nd5 {[%clk 0:02:47]}  Qa5+ {[%clk 0:02:56]} 11. Nc3 {[%clk 0:02:44]}  Bf5 {[%clk 0:02:56]} 12. Be3 {[%clk 0:02:42]}  Bb4 {[%clk 0:02:55]} 13. Qd2 {[%clk 0:02:39]}  Rd8 {[%clk 0:02:50]} 14. Qc1 {[%clk 0:02:26]}  Nd5 {[%clk 0:02:39]} 15. Bd2 {[%clk 0:02:24]}  Nxc3 {[%clk 0:02:39]} 16. bxc3 {[%clk 0:02:23]}  Bxc3 {[%clk 0:02:40]} 17. Bxc3 {[%clk 0:02:24]}  Qxc3+ {[%clk 0:02:39]} 18. Kf1 {[%clk 0:02:24]}  O-O {[%clk 0:02:36]} 19. g4 {[%clk 0:02:20]}  Bg6 {[%clk 0:02:30]} 20. Kg2 {[%clk 0:01:47]}  e3 {[%clk 0:02:24]} 21. Qxe3 {[%clk 0:01:39]}  Qxa1 {[%clk 0:02:22]} 22. Nf3 {[%clk 0:01:37]}  Qb1 {[%clk 0:02:14]} 23. Rxb1 {[%clk 0:01:29]}  Bxc2 {[%clk 0:02:05]} 24. Rxb7 {[%clk 0:01:26]} 1/2-1/2

[Event "December 5 Late 2023"]
[Site "https://www.chess.com"]
[Date "2023.12.05"]
[Round "11"]
[White "Skaric, Djuro"]
[Black "Paragua, Megan Althea"]
[Result "1/2-1/2"]
[Board "81"]
[TimeControl "180+1"]
[WhiteFideId "934569"]
[BlackFideId "30973007"]
[WhiteElo "2394"]
[BlackElo "2298"]
[WhiteTeam "SRB"]
[BlackTeam "USA"]
[WhiteClock "0:00:27"]
[BlackClock "0:00:11"]

1. g3 {[%clk 0:03:00]}  Nf6 {[%clk 0:02:58]} 2. Bg2 {[%clk 0:03:01]}  e6 {[%clk 0:02:58]} 3. d3 {[%clk 0:03:02]}  d5 {[%clk 0:02:58]} 4. Nf3 {[%clk 0:03:03]}  Be7 {[%clk 0:02:59]} 5. O-O {[%clk 0:03:04]}  O-O {[%clk 0:02:59]} 6. h3 {[%clk 0:03:05]}  b6 {[%clk 0:02:59]} 7. Nc3 {[%clk 0:03:05]}  Bb7 {[%clk 0:02:59]} 8. e4 {[%clk 0:03:05]}  dxe4 {[%clk 0:02:59]} 9. Ng5 {[%clk 0:03:05]}  Nbd7 {[%clk 0:02:56]} 10. Ngxe4 {[%clk 0:03:05]}  Nxe4 {[%clk 0:02:56]} 11. dxe4 {[%clk 0:03:06]}  Nf6 {[%clk 0:02:54]} 12. f4 {[%clk 0:03:04]}  c5 {[%clk 0:02:52]} 13. Be3 {[%clk 0:03:03]}  a6 {[%clk 0:02:48]} 14. Rf2 {[%clk 0:03:01]}  Qxd1+ {[%clk 0:02:39]} 15. Rxd1 {[%clk 0:03:00]}  Rfd8 {[%clk 0:02:39]} 16. Rfd2 {[%clk 0:03:01]}  Rxd2 {[%clk 0:02:34]} 17. Rxd2 {[%clk 0:03:01]}  Rd8 {[%clk 0:02:34]} 18. Rxd8+ {[%clk 0:02:57]}  Bxd8 {[%clk 0:02:35]} 19. e5 {[%clk 0:02:57]}  Bxg2 {[%clk 0:02:33]} 20. Kxg2 {[%clk 0:02:57]}  Nd5 {[%clk 0:02:34]} 21. Nxd5 {[%clk 0:02:55]}  exd5 {[%clk 0:02:33]} 22. f5 {[%clk 0:02:45]}  Kf8 {[%clk 0:02:30]} 23. Kf3 {[%clk 0:02:45]}  Bc7 {[%clk 0:02:29]} 24. Bf4 {[%clk 0:02:45]}  Ke8 {[%clk 0:02:23]} 25. h4 {[%clk 0:02:43]}  Bd8 {[%clk 0:02:22]} 26. h5 {[%clk 0:02:43]}  h6 {[%clk 0:02:20]} 27. a4 {[%clk 0:02:42]}  b5 {[%clk 0:02:18]} 28. axb5 {[%clk 0:02:39]}  axb5 {[%clk 0:02:19]} 29. Be3 {[%clk 0:02:39]}  d4 {[%clk 0:02:16]} 30. Bf4 {[%clk 0:02:38]}  Kd7 {[%clk 0:02:16]} 31. Ke4 {[%clk 0:02:38]}  Kc6 {[%clk 0:02:15]} 32. f6 {[%clk 0:02:35]}  gxf6 {[%clk 0:02:14]} 33. Bxh6 {[%clk 0:02:33]}  fxe5 {[%clk 0:02:14]} 34. Kxe5 {[%clk 0:02:33]}  Bc7+ {[%clk 0:02:11]} 35. Kf5 {[%clk 0:02:31]}  c4 {[%clk 0:02:06]} 36. Bd2 {[%clk 0:02:21]}  Kd5 {[%clk 0:01:55]} 37. h6 {[%clk 0:02:21]}  Be5 {[%clk 0:01:54]} 38. Bg5 {[%clk 0:02:17]}  d3 {[%clk 0:01:49]} 39. cxd3 {[%clk 0:02:17]}  cxd3 {[%clk 0:01:50]} 40. b3 {[%clk 0:02:15]}  Bd4 {[%clk 0:01:13]} 41. g4 {[%clk 0:02:11]}  Bc3 {[%clk 0:01:13]} 42. h7 {[%clk 0:02:10]}  Bg7 {[%clk 0:01:08]} 43. Bd2 {[%clk 0:01:58]}  Be5 {[%clk 0:01:04]} 44. g5 {[%clk 0:01:56]}  Bg7 {[%clk 0:01:04]} 45. g6 {[%clk 0:01:55]}  fxg6+ {[%clk 0:01:04]} 46. Kxg6 {[%clk 0:01:56]}  Bd4 {[%clk 0:01:05]} 47. Bh6 {[%clk 0:01:50]}  Bh8 {[%clk 0:00:58]} 48. Bd2 {[%clk 0:01:47]}  Ke4 {[%clk 0:00:49]} 49. Bh6 {[%clk 0:01:29]}  Kf3 {[%clk 0:00:40]} 50. Bg7 {[%clk 0:01:26]}  d2 {[%clk 0:00:40]} 51. Bxh8 {[%clk 0:01:26]}  d1=Q {[%clk 0:00:40]} 52. Bf6 {[%clk 0:01:26]}  Qd3+ {[%clk 0:00:30]} 53. Kg7 {[%clk 0:01:26]}  Qd7+ {[%clk 0:00:29]} 54. Kh6 {[%clk 0:01:22]}  Qh3+ {[%clk 0:00:27]} 55. Kg7 {[%clk 0:01:22]}  Qg4+ {[%clk 0:00:24]} 56. Kf8 {[%clk 0:01:14]}  Qc8+ {[%clk 0:00:22]} 57. Kg7 {[%clk 0:01:12]}  Qd7+ {[%clk 0:00:21]} 58. Kg6 {[%clk 0:01:08]}  Qe8+ {[%clk 0:00:20]} 59. Kh6 {[%clk 0:00:50]}  Qf8+ {[%clk 0:00:19]} 60. Kg5 {[%clk 0:00:47]}  Qc5+ {[%clk 0:00:19]} 61. Kh4 {[%clk 0:00:34]}  Qb4+ {[%clk 0:00:15]} 62. Kh5 {[%clk 0:00:32]}  Qc5+ {[%clk 0:00:14]} 63. Kh6 {[%clk 0:00:33]}  Qf8+ {[%clk 0:00:12]} 64. Kg6 {[%clk 0:00:26]}  Qe8+ {[%clk 0:00:11]} 65. Kg7 {[%clk 0:00:27]}  Qd7+ {[%clk 0:00:11]} 1/2-1/2

[Event "December 5 Late 2023"]
[Site "https://www.chess.com"]
[Date "2023.12.05"]
[Round "11"]
[White "Biliy, Vadim"]
[Black "Mickiewicz, Piotr"]
[Result "0-1"]
[Board "82"]
[TimeControl "180+1"]
[WhiteFideId "14114127"]
[BlackFideId "1114891"]
[WhiteElo "2297"]
[BlackElo "2383"]
[WhiteTeam "UKR"]
[BlackTeam "POL"]
[WhiteClock "0:00:11"]
[BlackClock "0:00:09"]

1. d4 {[%clk 0:03:00]}  d5 {[%clk 0:02:56]} 2. Nf3 {[%clk 0:02:59]}  Nf6 {[%clk 0:02:53]} 3. e3 {[%clk 0:02:59]}  c5 {[%clk 0:02:38]} 4. c4 {[%clk 0:02:58]}  cxd4 {[%clk 0:02:37]} 5. Nxd4 {[%clk 0:02:57]}  e5 {[%clk 0:02:29]} 6. Nc2 {[%clk 0:02:57]}  Nc6 {[%clk 0:02:26]} 7. cxd5 {[%clk 0:02:56]}  Qxd5 {[%clk 0:02:23]} 8. Nc3 {[%clk 0:02:52]}  Qxd1+ {[%clk 0:02:21]} 9. Nxd1 {[%clk 0:02:52]}  Bf5 {[%clk 0:02:18]} 10. Na3 {[%clk 0:02:40]}  O-O-O {[%clk 0:02:15]} 11. f3 {[%clk 0:02:35]}  e4 {[%clk 0:02:12]} 12. Nc4 {[%clk 0:02:19]}  exf3 {[%clk 0:02:08]} 13. gxf3 {[%clk 0:02:18]}  Bb4+ {[%clk 0:02:04]} 14. Bd2 {[%clk 0:02:09]}  Bxd2+ {[%clk 0:02:01]} 15. Nxd2 {[%clk 0:02:08]}  Rhe8 {[%clk 0:02:02]} 16. Rc1 {[%clk 0:01:59]}  Kb8 {[%clk 0:02:00]} 17. Rc3 {[%clk 0:01:53]}  Nb4 {[%clk 0:01:39]} 18. Bc4 {[%clk 0:01:36]}  Nfd5 {[%clk 0:01:35]} 19. Bxd5 {[%clk 0:01:28]}  Rxd5 {[%clk 0:01:26]} 20. e4 {[%clk 0:01:18]}  Nxa2 {[%clk 0:01:25]} 21. Re3 {[%clk 0:01:15]}  Rxd2 {[%clk 0:00:39]} 22. Kxd2 {[%clk 0:01:11]}  Be6 {[%clk 0:00:39]} 23. Nc3 {[%clk 0:01:06]}  Nb4 {[%clk 0:00:38]} 24. Ke2 {[%clk 0:01:04]}  Nc2 {[%clk 0:00:36]} 25. Rg1 {[%clk 0:00:48]}  g6 {[%clk 0:00:35]} 26. Kf2 {[%clk 0:00:42]}  Nxe3 {[%clk 0:00:33]} 27. Kxe3 {[%clk 0:00:42]}  Kc7 {[%clk 0:00:24]} 28. Ra1 {[%clk 0:00:39]}  Kb6 {[%clk 0:00:23]} 29. Kf4 {[%clk 0:00:38]}  a6 {[%clk 0:00:22]} 30. Kg5 {[%clk 0:00:37]}  Rd8 {[%clk 0:00:15]} 31. Re1 {[%clk 0:00:32]}  Rd2 {[%clk 0:00:14]} 32. Re2 {[%clk 0:00:32]}  Rxe2 {[%clk 0:00:14]} 33. Nxe2 {[%clk 0:00:32]}  Kc5 {[%clk 0:00:14]} 34. Kh6 {[%clk 0:00:31]}  a5 {[%clk 0:00:12]} 35. Kxh7 {[%clk 0:00:30]}  b5 {[%clk 0:00:13]} 36. Nf4 {[%clk 0:00:25]}  b4 {[%clk 0:00:11]} 37. Nxe6+ {[%clk 0:00:23]}  fxe6 {[%clk 0:00:10]} 38. Kxg6 {[%clk 0:00:24]}  a4 {[%clk 0:00:11]} 39. h4 {[%clk 0:00:22]}  a3 {[%clk 0:00:12]} 40. bxa3 {[%clk 0:00:21]}  bxa3 {[%clk 0:00:12]} 41. h5 {[%clk 0:00:21]}  a2 {[%clk 0:00:13]} 42. h6 {[%clk 0:00:20]}  a1=Q {[%clk 0:00:14]} 43. h7 {[%clk 0:00:19]}  Qh8 {[%clk 0:00:13]} 44. Kf7 {[%clk 0:00:19]}  e5 {[%clk 0:00:13]} 45. Ke6 {[%clk 0:00:17]}  Kd4 {[%clk 0:00:14]} 46. Kf5 {[%clk 0:00:17]}  Ke3 {[%clk 0:00:13]} 47. Kg6 {[%clk 0:00:15]}  Kxf3 {[%clk 0:00:12]} 48. Kf5 {[%clk 0:00:15]}  Ke3 {[%clk 0:00:09]} 49. Kg6 {[%clk 0:00:14]}  Kxe4 {[%clk 0:00:09]} 50. Kh6 {[%clk 0:00:14]}  Qf6+ {[%clk 0:00:08]} 51. Kh5 {[%clk 0:00:14]}  Kf4 {[%clk 0:00:08]} 52. h8=Q {[%clk 0:00:11]}  Qg5# {[%clk 0:00:09]} 0-1